fUST/lending_fUST_20260526
["ID","MTS","AMOUNT","RATE_DAILY","PERIOD"]
[423027505,1779771043000,-500.0,0.00010958,2]
[423027507,1779771043000,-245.86,0.00010958,2]
[423027501,1779771043000,-500.0,0.00010958,2]
[423027503,1779771043000,-500.0,0.00010958,2]
[423027514,1779771043000,-500.0,0.00010958,2]
[423027504,1779771043000,-507.68,0.00010958,2]
[423027518,1779771043000,-526.16,0.00010958,2]
[423027512,1779771043000,-1414.87,0.00010958,2]
[423027513,1779771043000,-500.0,0.00010958,2]
[423027519,1779771043000,-668.15,0.00010958,2]
[423027515,1779771043000,-541.88701796,0.00010958,2]
[423027521,1779771043000,-500.0,0.00010958,2]
[423027516,1779771043000,-238.40229895,0.00010958,2]
[423027511,1779771043000,-846.62,0.00010958,2]
[423027509,1779771043000,-806.65,0.00010958,2]
[423027510,1779771043000,-500.0,0.00010958,2]
[423027517,1779771043000,-500.0,0.00010958,2]
[423027508,1779771043000,-500.0,0.00010958,2]
[423027662,1779771044000,-374.10667174,0.00011127,2]
[423027660,1779771044000,-151.0,0.000111,2]
[423027638,1779771044000,-2768.969985,0.00011018,2]
[423027640,1779771044000,-2027.883574,0.00011018,2]
[423027637,1779771044000,-514.681254,0.00011018,2]
[423027654,1779771044000,-151.0,0.000111,2]
[423027652,1779771044000,-151.0,0.000111,2]
[423027650,1779771044000,-151.0,0.000111,2]
[423027642,1779771044000,-1683.268797,0.00011018,2]
[423027648,1779771044000,-151.0,0.000111,2]
[423027664,1779771044000,-194.288288,0.00011128,2]
[423027658,1779771044000,-151.0,0.000111,2]
[423027666,1779771044000,-180.50662,0.00011128,2]
[423027695,1779771044000,-500.0,0.00011232,2]
[423027670,1779771044000,-244.0,0.00011144,2]
[423027681,1779771044000,-151.0,0.000112,2]
[423027672,1779771044000,-10046.48675022,0.000112,2]
[423027674,1779771044000,-151.0,0.000112,2]
[423027683,1779771044000,-151.0,0.000112,2]
[423027676,1779771044000,-151.0,0.000112,2]
[423027678,1779771044000,-151.0,0.000112,2]
[423027685,1779771044000,-151.0,0.000112,2]
[423027687,1779771044000,-1907.9466,0.00011232,2]
[423027691,1779771044000,-500.0,0.00011232,2]
[423027698,1779771044000,-1268.3,0.00011232,2]
[423027693,1779771044000,-500.0,0.00011232,2]
[423027689,1779771044000,-500.0,0.00011232,2]
[423027646,1779771044000,-151.0,0.000111,2]
[423027668,1779771044000,-1000.0,0.00011144,2]
[423027644,1779771044000,-1767.163908,0.00011018,2]
[423027609,1779771044000,-503.089429,0.00011007,2]
[423027627,1779771044000,-250.483918,0.00011018,2]
[423027574,1779771044000,-1000.0,0.00011,2]
[423027576,1779771044000,-1000.0,0.00011,2]
[423027578,1779771044000,-1000.0,0.00011,2]
[423027580,1779771044000,-1000.0,0.00011,2]
[423027582,1779771044000,-1000.0,0.00011,2]
[423027584,1779771044000,-1000.0,0.00011,2]
[423027588,1779771044000,-151.0,0.00011,2]
[423027586,1779771044000,-151.0,0.00011,2]
[423027590,1779771044000,-151.0,0.00011,2]
[423027592,1779771044000,-151.0,0.00011,2]
[423027602,1779771044000,-1177.765008,0.00011003,2]
[423027596,1779771044000,-151.0,0.00011,2]
[423027594,1779771044000,-200.0,0.00011,2]
[423027600,1779771044000,-1046.789932,0.00011002,2]
[423027635,1779771044000,-683.089638,0.00011018,2]
[423027598,1779771044000,-151.0,0.00011,2]
[423027604,1779771044000,-173.957638,0.00011006,2]
[423027696,1779771044000,-378.22016808,0.00011232,2]
[423027608,1779771044000,-3306.78499,0.00011007,2]
[423027611,1779771044000,-329.494868,0.00011007,2]
[423027613,1779771044000,-3696.205809,0.00011018,2]
[423027614,1779771044000,-748.184279,0.00011018,2]
[423027616,1779771044000,-320.952114,0.00011018,2]
[423027618,1779771044000,-786.182389,0.00011018,2]
[423027621,1779771044000,-1697.877758,0.00011018,2]
[423027623,1779771044000,-329.904879,0.00011018,2]
[423027631,1779771044000,-1245.172946,0.00011018,2]
[423027629,1779771044000,-731.389847,0.00011018,2]
[423027625,1779771044000,-3034.359487,0.00011018,2]
[423027633,1779771044000,-868.84057,0.00011018,2]
[423027606,1779771044000,-279.926526,0.00011007,2]
[423027702,1779771044000,-690.86,0.00011232,2]
[423027656,1779771044000,-151.0,0.000111,2]
[423027700,1779771044000,-500.0,0.00011232,2]
[423027768,1779771044000,-1207.84977563,0.00011426,7]
[423027769,1779771044000,-800.0,0.00011472,2]
[423027775,1779771044000,-200.0,0.00011499,2]
[423027773,1779771044000,-200.0,0.00011499,2]
[423027777,1779771044000,-102814.32745735,0.000115,2]
[423027778,1779771044000,-10046.48675022,0.000115,2]
[423027786,1779771044000,-500.0,0.00011506,2]
[423027782,1779771044000,-151.0,0.000115,2]
[423027784,1779771044000,-1907.9466,0.00011506,2]
[423027780,1779771044000,-151.0,0.000115,2]
[423027788,1779771044000,-304.20452728,0.00011506,2]
[423027790,1779771044000,-500.0,0.00011506,2]
[423027798,1779771044000,-690.86,0.00011506,2]
[423027795,1779771044000,-1268.3,0.00011506,2]
[423027771,1779771044000,-200.0,0.00011499,2]
[423027796,1779771044000,-500.0,0.00011506,2]
[423027806,1779771044000,-500.0,0.00011506,2]
[423027802,1779771044000,-776.48,0.00011506,2]
[423027807,1779771044000,-500.0,0.00011506,2]
[423027809,1779771044000,-507.68,0.00011506,2]
[423027808,1779771044000,-500.0,0.00011506,2]
[423027800,1779771044000,-500.0,0.00011506,2]
[423027804,1779771044000,-500.0,0.00011506,2]
[423027811,1779771044000,-1537.33,0.00011506,2]
[423027810,1779771044000,-500.0,0.00011506,2]
[423027813,1779771044000,-500.0,0.00011506,2]
[423027814,1779771044000,-806.65,0.00011506,2]
[423027816,1779771044000,-846.62,0.00011506,2]
[423027812,1779771044000,-500.0,0.00011506,2]
[423027711,1779771044000,-500.0,0.00011232,2]
[423027793,1779771044000,-500.0,0.00011506,2]
[423027766,1779771044000,-1059.40740963,0.00011426,7]
[423027680,1779771044000,-151.0,0.000112,2]
[423027759,1779771044000,-10046.48675022,0.000114,2]
[423027704,1779771044000,-500.0,0.00011232,2]
[423027709,1779771044000,-500.0,0.00011232,2]
[423027707,1779771044000,-500.0,0.00011232,2]
[423027706,1779771044000,-776.48,0.00011232,2]
[423027713,1779771044000,-500.0,0.00011232,2]
[423027719,1779771044000,-1537.33,0.00011232,2]
[423027724,1779771044000,-500.0,0.00011232,2]
[423027715,1779771044000,-507.68,0.00011232,2]
[423027717,1779771044000,-500.0,0.00011232,2]
[423027725,1779771044000,-806.65,0.00011232,2]
[423027721,1779771044000,-500.0,0.00011232,2]
[423027727,1779771044000,-846.62,0.00011232,2]
[423027764,1779771044000,-151.0,0.000114,2]
[423027731,1779771044000,-500.0,0.00011232,2]
[423027733,1779771044000,-396.70524226,0.00011232,2]
[423027729,1779771044000,-1414.87,0.00011232,2]
[423027735,1779771044000,-526.16,0.00011232,2]
[423027751,1779771044000,-151.0,0.000113,2]
[423027753,1779771044000,-151.0,0.000113,2]
[423027762,1779771044000,-151.0,0.000114,2]
[423027748,1779771044000,-10046.48675022,0.000113,2]
[423027737,1779771044000,-668.15,0.00011232,2]
[423027760,1779771044000,-151.0,0.000114,2]
[423027740,1779771044000,-500.0,0.00011232,2]
[423027757,1779771044000,-170.72916336,0.00011371,2]
[423027750,1779771044000,-151.0,0.000113,2]
[423027746,1779771044000,-800.0,0.0001126,2]
[423027744,1779771044000,-500.0,0.00011232,2]
[423027742,1779771044000,-7780.18,0.00011232,2]
[423027738,1779771044000,-500.0,0.00011232,2]
[423027755,1779771044000,-151.0,0.000113,2]
[423027832,1779771045000,-900.0,0.00011712,2]
[423027838,1779771045000,-722.0,0.00011712,2]
[423027831,1779771045000,-900.0,0.00011712,2]
[423027829,1779771045000,-900.0,0.00011712,2]
[423027822,1779771045000,-668.15,0.00011506,2]
[423027827,1779771045000,-10046.48675022,0.000116,2]
[423027826,1779771045000,-500.0,0.00011506,2]
[423027817,1779771045000,-1414.87,0.00011506,2]
[423027828,1779771045000,-10046.48675022,0.000117,2]
[423027824,1779771045000,-500.0,0.00011506,2]
[423027825,1779771045000,-7780.18,0.00011506,2]
[423027823,1779771045000,-500.0,0.00011506,2]
[423027833,1779771045000,-900.0,0.00011712,2]
[423027819,1779771045000,-500.0,0.00011506,2]
[423027837,1779771045000,-900.0,0.00011712,2]
[423027821,1779771045000,-526.16,0.00011506,2]
[423027840,1779771045000,-2000.0,0.00011712,2]
[423027834,1779771045000,-900.0,0.00011712,2]
[423027860,1779771045000,-1804.4846773,0.00011712,2]
[423027862,1779771045000,-195.5153227,0.00011712,2]
[423027859,1779771045000,-830.08914773,0.00011712,2]
[423027864,1779771045000,-166.65261378,0.00011712,2]
[423027855,1779771045000,-755.25292012,0.00011712,2]
[423027844,1779771045000,-2000.0,0.00011712,2]
[423027842,1779771045000,-2000.0,0.00011712,2]
[423027843,1779771045000,-2000.0,0.00011712,2]
[423027841,1779771045000,-2000.0,0.00011712,2]
[423027835,1779771045000,-900.0,0.00011712,2]
[423027836,1779771045000,-900.0,0.00011712,2]
[423027839,1779771045000,-2000.0,0.00011712,2]
[423027845,1779771045000,-414.65793215,0.00011712,2]
[423027830,1779771045000,-900.0,0.00011712,2]
[423027891,1779771047000,-532.58403797,7.162e-05,2]
[423027889,1779771047000,-532.58403797,7.162e-05,2]
[423027894,1779771047000,-532.58403797,7.162e-05,2]
[423027893,1779771047000,-532.58403797,7.162e-05,2]
[423027897,1779771047000,-532.58403797,7.162e-05,2]
[423027895,1779771047000,-532.58403797,7.162e-05,2]
[423027890,1779771047000,-532.58403797,7.162e-05,2]
[423027892,1779771047000,-532.58403797,7.162e-05,2]
[423027898,1779771047000,-581.3,8.219e-05,2]
[423027888,1779771047000,-532.58403797,7.162e-05,2]
[423027899,1779771047000,-581.3,8.493e-05,2]
[423027900,1779771047000,-581.3,8.767e-05,2]
[423027905,1779771047000,-2000.0,0.00011712,2]
[423027904,1779771047000,-2000.0,0.00011712,2]
[423027906,1779771047000,-2000.0,0.00011712,2]
[423027907,1779771047000,-2000.0,0.00011712,2]
[423027896,1779771047000,-532.58403797,7.162e-05,2]
[423027908,1779771047000,-2000.0,0.00011712,2]
[423027902,1779771047000,-500.0,0.00011506,2]
[423027909,1779771047000,-1902.91274123,0.00011712,2]
[423027903,1779771047000,-1833.34738622,0.00011712,2]
[423027901,1779771047000,-500.0,0.00011232,2]
[423027920,1779771672000,-313.2256712,6.736e-05,2]
[423027990,1779772239000,-943.6529815,6.53e-05,2]
[423027989,1779772239000,-1196.77127726,6.53e-05,2]
[423028002,1779772243000,-24.47997628,6.53e-05,2]
[423028027,1779772247000,-2530.47274385,6.53e-05,2]
[423028028,1779772247000,-918.96404078,6.53e-05,2]
[423028026,1779772247000,-304.62302111,6.53e-05,2]
[423028029,1779772257000,313.2256722,2.862e-05,2]
[423028031,1779772603000,222.21999329,0.00017395,120]
[423028032,1779772619000,220.42087885,0.00017454,120]
[423028038,1779773190000,203.92521394,0.00013224,30]
[423028040,1779773191000,203.92521394,0.00013528,60]
[423028039,1779773191000,203.92521394,0.00013376,60]
[423028043,1779773197000,354.16230743,0.00013167,30]
[423028045,1779773198000,354.16230743,0.0001324,30]
[423028044,1779773198000,354.16230743,0.00013203,30]
[423028047,1779773199000,354.16230743,0.00013313,30]
[423028046,1779773199000,354.16230743,0.00013276,30]
[423028048,1779773200000,354.16230743,0.0001335,30]
[423028049,1779773200000,354.16230743,0.00013386,60]
[423028051,1779773201000,354.16230743,0.0001346,60]
[423028050,1779773201000,354.16230743,0.00013423,60]
[423028053,1779773202000,354.16230743,0.00013533,60]
[423028052,1779773202000,354.16230743,0.00013496,60]
[423028055,1779773203000,354.16230743,0.00013606,120]
[423028054,1779773203000,354.16230743,0.0001357,60]
[423028056,1779773204000,354.16230743,0.00013643,120]
[423028057,1779773205000,354.16230743,0.00013679,120]
[423028088,1779773431000,-307.0373061,5.997e-05,2]
[423028086,1779773431000,-4198.63100597,5.997e-05,2]
[423028087,1779773431000,-290.36371307,5.997e-05,2]
[423028092,1779773431000,-286.1768369,6.058e-05,2]
[423028090,1779773431000,-300.0,6.058e-05,2]
[423028089,1779773431000,-203.96797486,5.997e-05,2]
[423028091,1779773431000,-1200.0,6.058e-05,2]
[423028124,1779773432000,-470.0327707,6.059e-05,2]
[423028093,1779773432000,-473.02845362,6.059e-05,2]
[423028095,1779773432000,-246.84724884,6.059e-05,2]
[423028096,1779773432000,-500.0,6.059e-05,2]
[423028097,1779773432000,-302.16498139,6.059e-05,2]
[423028100,1779773432000,-26.97187514,6.059e-05,2]
[423028103,1779773432000,-500.0,6.059e-05,2]
[423028102,1779773432000,-293.13486713,6.059e-05,2]
[423028098,1779773432000,-646.84262925,6.059e-05,2]
[423028104,1779773432000,-500.0,6.059e-05,2]
[423028106,1779773432000,-500.0,6.059e-05,2]
[423028101,1779773432000,-343.57384057,6.059e-05,2]
[423028105,1779773432000,-500.0,6.059e-05,2]
[423028099,1779773432000,-500.0,6.059e-05,2]
[423028107,1779773432000,-500.0,6.059e-05,2]
[423028094,1779773432000,-500.0,6.059e-05,2]
[423028109,1779773432000,-500.0,6.059e-05,2]
[423028123,1779773432000,-500.0,6.059e-05,2]
[423028121,1779773432000,-500.0,6.059e-05,2]
[423028122,1779773432000,-500.0,6.059e-05,2]
[423028115,1779773432000,-500.0,6.059e-05,2]
[423028119,1779773432000,-500.0,6.059e-05,2]
[423028112,1779773432000,-500.0,6.059e-05,2]
[423028116,1779773432000,-500.0,6.059e-05,2]
[423028118,1779773432000,-500.0,6.059e-05,2]
[423028120,1779773432000,-500.0,6.059e-05,2]
[423028117,1779773432000,-500.0,6.059e-05,2]
[423028114,1779773432000,-500.0,6.059e-05,2]
[423028110,1779773432000,-500.0,6.059e-05,2]
[423028111,1779773432000,-500.0,6.059e-05,2]
[423028113,1779773432000,-500.0,6.059e-05,2]
[423028108,1779773432000,-500.0,6.059e-05,2]
[423028153,1779773438000,-550.54152787,6.059e-05,2]
[423028154,1779773438000,-500.0,6.059e-05,2]
[423028155,1779773438000,-500.0,6.059e-05,2]
[423028149,1779773438000,-29.9672293,6.059e-05,2]
[423028152,1779773438000,-500.0,6.059e-05,2]
[423028150,1779773438000,-500.0,6.059e-05,2]
[423028151,1779773438000,-500.0,6.059e-05,2]
[423028156,1779773438000,-500.0,6.059e-05,2]
[423028159,1779773438000,-500.0,6.059e-05,2]
[423028157,1779773438000,-500.0,6.059e-05,2]
[423028161,1779773438000,-300.0,6.059e-05,2]
[423028163,1779773438000,-150.0,6.12e-05,2]
[423028164,1779773438000,-10889.55182759,6.186e-05,8]
[423028160,1779773438000,-500.0,6.059e-05,2]
[423028158,1779773438000,-500.0,6.059e-05,2]
[423028162,1779773438000,-150.0,6.12e-05,2]
[423028189,1779773440000,-1191.59885502,6.186e-05,8]
[423028182,1779773440000,-1765.38613729,6.186e-05,8]
[423028180,1779773440000,-3022.33161556,6.186e-05,8]
[423028291,1779773442000,152.0,0.00013415,30]
[423028319,1779773443000,-414.25839924,6.186e-05,8]
[423028311,1779773443000,-18466.03227847,6.186e-05,8]
[423028325,1779773443000,-4042.89343697,6.186e-05,8]
[423028313,1779773443000,-1518.30402902,6.186e-05,8]
[423028326,1779773443000,-2653.8385751,6.186e-05,8]
[423028376,1779773447000,-500.0,6.058e-05,2]
[423028368,1779773447000,-500.0,6.058e-05,2]
[423028372,1779773447000,-500.0,6.058e-05,2]
[423028371,1779773447000,-500.0,6.058e-05,2]
[423028370,1779773447000,-500.0,6.058e-05,2]
[423028373,1779773447000,-500.0,6.058e-05,2]
[423028367,1779773447000,-500.0,6.058e-05,2]
[423028369,1779773447000,-500.0,6.058e-05,2]
[423028375,1779773447000,-500.0,6.058e-05,2]
[423028381,1779773447000,-64422.02361494,6.186e-05,8]
[423028380,1779773447000,-500.0,6.058e-05,2]
[423028374,1779773447000,-500.0,6.058e-05,2]
[423028378,1779773447000,-500.0,6.058e-05,2]
[423028377,1779773447000,-500.0,6.058e-05,2]
[423028379,1779773447000,-584.58543292,6.058e-05,2]
[423028382,1779773472000,-4402.72455989,6.124e-05,2]
[423028383,1779773585000,165.262008,3.595e-05,2]
[423028384,1779773600000,152.0,0.00013389,30]
[423028385,1779773601000,152.0,0.00013389,30]
[423028386,1779773602000,152.0,0.00013415,30]
[423028389,1779773901000,152.0,0.00013377,30]
[423028388,1779773901000,152.0,0.00013377,30]
[423028390,1779773902000,152.0,0.00013403,30]
[423028391,1779773903000,152.0,0.00013403,30]
[423028392,1779773928000,152.0,0.00013361,30]
[423028393,1779773929000,152.0,0.00013361,30]
[423028394,1779773930000,152.0,0.00013387,30]
[423028395,1779773931000,152.0,0.00013387,30]
[423028396,1779774503000,152.0,0.00013397,30]
[423028398,1779774504000,152.0,0.00013424,30]
[423028397,1779774504000,152.0,0.00013397,30]
[423028399,1779774505000,152.0,0.00013424,30]
[423028401,1779774527000,152.0,0.00013424,30]
[423028400,1779774527000,152.0,0.00013397,30]
[423028403,1779774550000,152.0,0.00013397,30]
[423028453,1779774634000,-2387.08088962,5.761e-05,2]
[423028452,1779774634000,-435.05415278,5.76e-05,2]
[423028454,1779774634000,-400.499995,5.761e-05,2]
[423028451,1779774634000,-500.0,5.76e-05,2]
[423028450,1779774634000,-500.0,5.76e-05,2]
[423028449,1779774634000,-500.0,5.76e-05,2]
[423028521,1779774638000,-2212.41911538,5.761e-05,2]
[423028525,1779774638000,-712.58951452,6.167e-05,2]
[423028524,1779774638000,-68.40299343,6.167e-05,2]
[423028523,1779774638000,-2284.7803288,6.167e-05,2]
[423028522,1779774638000,-463.56788455,5.88e-05,2]
[423028538,1779774640000,-512.24832185,6.167e-05,2]
[423028539,1779774640000,-500.0,6.184e-05,2]
[423028542,1779774640000,-76.9148445,6.184e-05,2]
[423028541,1779774640000,-423.0851555,6.184e-05,2]
[423028544,1779774640000,-500.0,6.184e-05,2]
[423028549,1779774640000,-500.0,6.184e-05,2]
[423028550,1779774640000,-500.0,6.184e-05,2]
[423028540,1779774640000,-500.0,6.184e-05,2]
[423028551,1779774640000,-500.0,6.184e-05,2]
[423028543,1779774640000,-500.0,6.184e-05,2]
[423028547,1779774640000,-84.12293975,6.184e-05,2]
[423028552,1779774640000,-500.0,6.184e-05,2]
[423028548,1779774640000,-415.87706025,6.184e-05,2]
[423028546,1779774640000,-500.0,6.184e-05,2]
[423028553,1779774640000,-1354.73260818,6.186e-05,8]
[423028545,1779774640000,-459.20980304,6.184e-05,2]
[423028554,1779774641000,152.0,0.00013397,30]
[423028555,1779774642000,152.0,0.00013397,30]
[423028568,1779774644000,-2387.00425297,8.119e-05,2]
[423028563,1779774644000,-181.262175,7.514e-05,2]
[423028562,1779774644000,-5251.43123484,6.186e-05,8]
[423028566,1779774644000,-160.0,7.982e-05,2]
[423028564,1779774644000,-547.01010376,7.88e-05,2]
[423028565,1779774644000,-223.529,7.982e-05,2]
[423028567,1779774644000,-160.0,7.982e-05,2]
[423028591,1779774646000,-307.708,8.119e-05,2]
[423028601,1779775080000,-378.5772749,5.531e-05,2]
[423028602,1779775100000,-463.03938649,5.531e-05,2]
[423028605,1779775120000,-1021.37348596,5.531e-05,2]
[423028606,1779775141000,-475.7947936,5.531e-05,2]
[423028609,1779775194000,-300.0,5.585e-05,2]
[423028610,1779775247000,-300.0,5.585e-05,2]
[423028611,1779775301000,-300.0,5.585e-05,2]
[423028612,1779775354000,-1200.0,5.585e-05,2]
[423028613,1779775408000,-500.0,5.584e-05,2]
[423028614,1779775461000,-500.0,5.584e-05,2]
[423028615,1779775498000,152.0,0.00013404,30]
[423028616,1779775498000,152.0,0.00013404,30]
[423028617,1779775519000,152.0,0.00013404,30]
[423028619,1779775750000,152.0,0.0001343,30]
[423028620,1779775751000,152.0,0.0001343,30]
[423028621,1779775770000,152.0,0.0001343,30]
[423028661,1779775832000,-404.717955,5.47e-05,2]
[423028677,1779775832000,-500.0,5.524e-05,2]
[423028679,1779775832000,-500.0,5.524e-05,2]
[423028675,1779775832000,-500.0,5.524e-05,2]
[423028685,1779775832000,-228.0,5.524e-05,2]
[423028680,1779775832000,-177.85890792,5.524e-05,2]
[423028683,1779775832000,-500.0,5.524e-05,2]
[423028682,1779775832000,-500.0,5.524e-05,2]
[423028687,1779775832000,-1338.82486985,5.525e-05,2]
[423028673,1779775832000,-4595.282045,5.47e-05,2]
[423028742,1779775838000,-500.0,5.469e-05,2]
[423028773,1779775838000,-500.0,5.524e-05,2]
[423028777,1779775838000,-500.0,5.524e-05,2]
[423028766,1779775838000,-500.0,5.469e-05,2]
[423028767,1779775838000,-500.0,5.469e-05,2]
[423028764,1779775838000,-500.0,5.469e-05,2]
[423028762,1779775838000,-500.0,5.469e-05,2]
[423028760,1779775838000,-500.0,5.469e-05,2]
[423028758,1779775838000,-500.0,5.469e-05,2]
[423028744,1779775838000,-500.0,5.469e-05,2]
[423028730,1779775838000,-500.0,5.469e-05,2]
[423028756,1779775838000,-500.0,5.469e-05,2]
[423028740,1779775838000,-500.0,5.469e-05,2]
[423028738,1779775838000,-500.0,5.469e-05,2]
[423028750,1779775838000,-500.0,5.469e-05,2]
[423028753,1779775838000,-500.0,5.469e-05,2]
[423028752,1779775838000,-428.44685913,5.469e-05,2]
[423028747,1779775838000,-500.0,5.469e-05,2]
[423028734,1779775838000,-500.0,5.469e-05,2]
[423028732,1779775838000,-215.00601698,5.469e-05,2]
[423028779,1779775838000,-500.0,5.524e-05,2]
[423028746,1779775838000,-500.0,5.469e-05,2]
[423028775,1779775838000,-500.0,5.524e-05,2]
[423028736,1779775838000,-500.0,5.469e-05,2]
[423028771,1779775838000,-500.0,5.524e-05,2]
[423028769,1779775838000,-500.0,5.524e-05,2]
[423028807,1779775838000,-500.0,8.219e-05,2]
[423028805,1779775838000,-1553.73872585,8.204e-05,2]
[423028806,1779775838000,-1281.4092,8.219e-05,2]
[423028801,1779775838000,-294.91,7.921e-05,2]
[423028803,1779775838000,-160.0,7.979e-05,2]
[423028802,1779775838000,-380.67552318,7.967e-05,2]
[423028795,1779775838000,-338.9557026,6.263e-05,2]
[423028797,1779775838000,-864.0,7.107e-05,2]
[423028794,1779775838000,-2937.0732961,6.263e-05,2]
[423028790,1779775838000,-600.0,5.873e-05,2]
[423028804,1779775838000,-160.0,7.979e-05,2]
[423028791,1779775838000,-5384.7499531,6.193e-05,2]
[423028781,1779775838000,-500.0,5.524e-05,2]
[423028796,1779775838000,-720.0,6.46e-05,2]
[423028785,1779775838000,-601.16890118,5.525e-05,2]
[423028783,1779775838000,-12843.81467482,5.525e-05,2]
[423028789,1779775838000,-443.35632478,5.554e-05,2]
[423028798,1779775838000,-523.16046324,7.554e-05,2]
[423028787,1779775838000,-959.37599223,5.525e-05,2]
[423028800,1779775838000,-388.43468146,7.902e-05,2]
[423028793,1779775838000,-1293.2408298,6.263e-05,2]
[423028799,1779775838000,-1000.0,7.817e-05,2]
[423028792,1779775838000,-3047.8984828,6.193e-05,2]
[423028852,1779775839000,-648.49,8.219e-05,2]
[423028841,1779775839000,-500.0,8.219e-05,2]
[423028851,1779775839000,-500.0,8.219e-05,2]
[423028849,1779775839000,-500.0,8.219e-05,2]
[423028848,1779775839000,-500.0,8.219e-05,2]
[423028846,1779775839000,-451.53501221,8.219e-05,2]
[423028844,1779775839000,-500.0,8.219e-05,2]
[423028847,1779775839000,-500.0,8.219e-05,2]
[423028845,1779775839000,-500.0,8.219e-05,2]
[423028842,1779775839000,-500.0,8.219e-05,2]
[423028850,1779775839000,-500.0,8.219e-05,2]
[423028843,1779775839000,-500.0,8.219e-05,2]
[423028854,1779775839000,-725.45,8.219e-05,2]
[423028865,1779775839000,-500.0,8.219e-05,2]
[423028853,1779775839000,-500.0,8.219e-05,2]
[423028864,1779775839000,-500.0,8.219e-05,2]
[423028856,1779775839000,-500.0,8.219e-05,2]
[423028857,1779775839000,-500.0,8.219e-05,2]
[423028858,1779775839000,-500.0,8.219e-05,2]
[423028862,1779775839000,-500.0,8.219e-05,2]
[423028861,1779775839000,-500.0,8.219e-05,2]
[423028859,1779775839000,-500.0,8.219e-05,2]
[423028860,1779775839000,-500.0,8.219e-05,2]
[423028863,1779775839000,-235.13414493,8.219e-05,2]
[423028840,1779775839000,-500.87598418,8.219e-05,2]
[423028867,1779775839000,-463.94,8.219e-05,2]
[423028868,1779775839000,-183.04041654,8.219e-05,2]
[423028866,1779775839000,-3613.47,8.219e-05,2]
[423028855,1779775839000,-500.0,8.219e-05,2]
[423028836,1779775839000,-500.0,8.219e-05,2]
[423028828,1779775839000,-500.0,8.219e-05,2]
[423028834,1779775839000,-505.00000006,8.219e-05,2]
[423028812,1779775839000,-500.0,8.219e-05,2]
[423028813,1779775839000,-500.0,8.219e-05,2]
[423028810,1779775839000,-500.0,8.219e-05,2]
[423028811,1779775839000,-500.0,8.219e-05,2]
[423028809,1779775839000,-500.0,8.219e-05,2]
[423028808,1779775839000,-189.8702946,8.219e-05,2]
[423028814,1779775839000,-500.0,8.219e-05,2]
[423028818,1779775839000,-500.0,8.219e-05,2]
[423028817,1779775839000,-500.0,8.219e-05,2]
[423028816,1779775839000,-500.0,8.219e-05,2]
[423028815,1779775839000,-500.0,8.219e-05,2]
[423028822,1779775839000,-500.0,8.219e-05,2]
[423028873,1779775839000,-184.10873058,8.219e-05,2]
[423028837,1779775839000,-500.0,8.219e-05,2]
[423028819,1779775839000,-625.86908226,8.219e-05,2]
[423028823,1779775839000,-500.0,8.219e-05,2]
[423028825,1779775839000,-500.0,8.219e-05,2]
[423028820,1779775839000,-500.38990564,8.219e-05,2]
[423028826,1779775839000,-500.0,8.219e-05,2]
[423028838,1779775839000,-500.0,8.219e-05,2]
[423028839,1779775839000,-245.26244882,8.219e-05,2]
[423028830,1779775839000,-501.90645906,8.219e-05,2]
[423028827,1779775839000,-500.0,8.219e-05,2]
[423028831,1779775839000,-500.0,8.219e-05,2]
[423028829,1779775839000,-500.0,8.219e-05,2]
[423028832,1779775839000,-500.36400901,8.219e-05,2]